Cogmind - Beta 13 @@@ ROGUE MODE // 2024.04.16 @ 19:43:23 Player: oranges Result: Destroyed by YI-UF0 with YI-UF0's Doublenader Performance ------------- Evolutions (0) 0 Regions Visited (2) 400 Robots Destroyed (27) 135 Value Destroyed (514) 514 Prototype IDs (0) 0 Alien Tech Used (0) 0 Bonus (0) 0 TOTAL SCORE: 1049 Bonus ------- None Cogmind --------- Core Integrity 0/250 Matter 238/300 Energy 250/250 System Corruption 1% Temperature Cool (10) Movement Treading (240) Ox1 Location -10/Mines Parts ------- > --- POWER (1) -------- Ion Engine > --- PROPULSION (2) --- Light Treads Light Treads > --- UTILITY (2) ------ High-capacity Storage Unit Weapon Shielding > --- WEAPON (2) ------- Small Laser Light Assault Rifle > --- INVENTORY (20) --- Light Ion Engine Light Ion Engine Aluminum Leg Wheel Wheel Small Storage Unit Terrain Scanner Light Armor Plating Hacking Suite Hacking Suite Recalibrator Medium Laser Grenade Launcher Grenade Launcher Grenade Launcher Mining Claw Mining Claw Peak State ------------ > --- POWER ------------ Light Ion Engine > --- PROPULSION ------- Light Treads Light Treads > --- UTILITY ---------- High-capacity Storage Unit Sensor Array > --- WEAPON ----------- Mining Claw Mining Claw > --- INVENTORY -------- Light Ion Engine Light Treads Light Treads Aluminum Leg Aluminum Leg Wheel Small Storage Unit Hacking Suite Hacking Suite Medium Laser Small Laser Assault Rifle Light Assault Rifle Grenade Launcher Grenade Launcher Grenade Launcher [Rating: 9] Favorites ----------- Power Light Ion Engine Engine Light Ion Engine Propulsion Light Treads Treads Light Treads Wheel Wheel Utility High-capacity Storage Unit Device Sensor Array Storage High-capacity Storage Unit Protection Weapon Shielding Weapon Mining Claw Energy Gun Medium Laser Ballistic Gun Assault Rifle Launcher Grenade Launcher Slashing Weapon Mining Claw Build | -11 -10 -10 ------- Run | Yrd Mat Min Slots Evolved . | . . . Power . | . . . Propulsion . | . . . Utility . | . . . Weapon . | . . . Parts Attached 23 | 6 11 6 Power 4 | 1 3 . Engine 4 | 1 3 . Core . | . . . Reactor . | . . . Propulsion 6 | 2 2 2 Treads 4 | . 2 2 Leg . | . . . Wheel 2 | 2 . . Hover . | . . . Flight . | . . . Utility 4 | 1 2 1 Device 1 | . 1 . Storage 2 | 1 1 . Processor . | . . . Hackware . | . . . Protection 1 | . . 1 Artifact . | . . . Weapon 9 | 2 4 3 Energy Gun 2 | 1 . 1 Energy Cannon . | . . . Ballistic Gun 3 | 1 1 1 Ballistic Cannon . | . . . Launcher 1 | . . 1 Special Weapon . | . . . Impact Weapon . | . . . Slashing Weapon 3 | . 3 . Piercing Weapon . | . . . Special Melee Weapon . | . . . Unidentified Prototypes . | . . . Parts Lost 6 | . 3 3 Power 2 | . 2 . Propulsion 3 | . 1 2 Utility 1 | . . 1 Weapon . | . . . Highest Loss Streak 3 | . 2 3 To Critical Strikes . | . . . Average Slot Usage (%) 95 | . 94 100 Engine 13 | . 13 14 Treads 23 | . 22 28 Wheel 4 | . 4 . Device 9 | . 9 11 Storage 14 | . 14 14 Energy Gun 9 | . 9 2 Ballistic Gun 8 | . 9 7 Slashing Weapon 9 | . 9 14 Naked Turns . | . . . Heaviest Build 50 | 14 50 50 Greatest Support 40 | 26 40 40 Greatest Overweight (x) 1 | . 1 1 Average Overweight (x) . | . . 1 Largest Inventory Capacity 20 | 8 20 20 Average Capacity 17 | 6 18 20 Most Carried 20 | 6 20 20 Average Carried 13 | 3 13 19 Final Capacity 20 | 8 20 20 Final Carried 20 | 6 20 17 Class Distribution -------------------- 100% | Mutant Dominant Class ---------------- Mutant | -10/Materials Mutant | -10/Mines Resources | -11 -10 -10 ----------- Run | Yrd Mat Min Matter Collected 568 | 260 282 26 Remotely . | . . . Salvage Created 808 | . 808 . Parts 63 | . 63 . Haulers Intercepted 1 | . 1 . Recyclers Shooed 3 | . 3 . Parts Field Recycled . | . . . Retrieved Matter . | . . . Parts Self-Destructed . | . . . Prevented . | . . . Kills | -11 -10 -10 ------- Run | Yrd Mat Min Combat Hostiles Destroyed 16 | . 16 . Melee 1 | . 1 . Guns 15 | . 15 . Classes Destroyed 9 | . 9 . Worker 1 | . 1 . Builder 3 | . 3 . Hauler 1 | . 1 . Recycler 1 | . 1 . Mechanic 1 | . 1 . Operator 2 | . 2 . Watcher 2 | . 2 . Swarmer 6 | . 6 . Grunt 10 | . 10 . Best Kill Streak 7 | . 7 . Combat Bots Only 5 | . 5 . Max Kills in Single Turn 1 | . 1 . Gunslinging . | . . . Exploded . | . . . Melee 1 | . 1 . Uniques/NPCs Destroyed . | . . . Combat | -11 -10 -10 -------- Run | Yrd Mat Min Hostile Shots Fired 101 | . 75 26 Missed 28 | . 19 9 Damage Taken 1142 | . 599 543 Core 252 | . 94 158 Absorbed by Shields . | . . . Redirected to Shielding 12 | . . 12 Core Remaining (%) 100 | 100 . . Volleys Fired 65 | . 58 7 Largest 2 | . 2 2 Hottest 70 | . 70 60 Shots Fired 126 | . 112 14 Gun 123 | . 112 11 Cannon . | . . . Launcher 3 | . . 3 Special . | . . . Kinetic 65 | . 58 7 Thermal 58 | . 54 4 Explosive 3 | . . 3 Electromagnetic . | . . . Robot Hit Streak 7 | . 6 7 Robot Miss Streak 3 | . 3 2 Penetration Max . | . . . Secondary Targets . | . . . Shots Hit Robots 102 | . 94 8 Core Hits 39 | . 36 3 Critical Kills . | . . . Critical Parts Destroyed . | . . . Critical Strikes 4 | . 4 . Burn 4 | . 4 . Melee Attacks 23 | . 23 . Impact . | . . . Slashing 23 | . 23 . Piercing . | . . . Sneak Attacks 15 | . 15 . Combat Hostiles . | . . . Follow-up Attacks 3 | . 3 . Damage Inflicted 1821 | . 1749 72 Guns 1069 | . 1005 64 Cannons . | . . . Explosions 8 | . . 8 Melee 736 | . 736 . Ramming 8 | . 8 . Kinetic 520 | . 489 31 Thermal 549 | . 516 33 Explosive 8 | . . 8 Electromagnetic . | . . . Impact . | . . . Slashing 736 | . 736 . Piercing . | . . . Highest Corruption 1 | . 1 1 Average Corruption 1 | . 1 1 Corruption Purged . | . . . Corruption Blocked . | . . . Effects 5 | . 5 . Message Errors 1 | . 1 . Matter Fused 2 | . 2 . Energy Discharges 1 | . 1 . Data Loss (minor) 1 | . 1 . Overload Shots . | . . . Overflow Damage 102 | . 102 . Projectiles . | . . . Explosions . | . . . Melee 102 | . 102 . Knockbacks . | . . . Impact . | . . . Kinetic . | . . . Secondary . | . . . Self-Inflicted Damage . | . . . Shots . | . . . Rammed 1 | . 1 . Targets Rammed 1 | . 1 . Kicked . | . . . Crushed . | . . . Highest Temperature 177 | . 177 20 Average Temperature 64 | . 68 11 Received Heat Transfer 267 | . 267 . Siege Activations . | . . . Robots Corrupted . | . . . Combat Hostiles . | . . . Parts Fried . | . . . Impact Corruptions . | . . . Robots Melted . | . . . Combat Hostiles . | . . . Parts Melted 3 | . 3 . Heat Transferred 1888 | . 1813 75 Parts Sabotaged . | . . . Parts Stolen . | . . . Parts Stripped . | . . . Power Chain Reactions . | . . . Alert | -11 -10 -10 ------- Run | Yrd Mat Min Peak Influence 288 | . 288 25 Initial 19 | . . 19 Average 137 | . 151 17 Maximum Alert Level 1 | . 1 . Low Security (%) 67 | 100 63 100 Level 1 32 | . 36 . Level 2 . | . . . Level 3 . | . . . Level 4 . | . . . Level 5 . | . . . High Security . | . . . Max Security . | . . . Squads Dispatched 4 | . 4 . Investigation 2 | . 2 . Extermination . | . . . Reinforcement 2 | . 2 . Assault . | . . . Garrison . | . . . Intercept . | . . . Searches Triggered . | . . . Construction Impeded . | . . . Haulers Reinforced . | . . . Active Scanning Responses . | . . . Cargo Convoy Interrupts . | . . . Stealth | -11 -10 -10 --------- Run | Yrd Mat Min Distress Signals 1 | . 1 . Communications Jammed . | . . . Distress Signals . | . . . Times Spotted 22 | . 21 1 Peak Tracking Total 3 | . 3 1 Tactical Retreats 1 | . 1 . Traps | -11 -10 -10 ------- Run | Yrd Mat Min Traps Triggered . | . . . Indirectly . | . . . Trap Hack Attempts . | . . . Triggered . | . . . Disarmed . | . . . Reprogrammed . | . . . Reused . | . . . Traps Extracted . | . . . Installed . | . . . Triggered . | . . . Machines | -11 -10 -10 ---------- Run | Yrd Mat Min Machines Disabled . | . . . Max in Single Turn . | . . . Machines Repaired . | . . . Machines Dismantled . | . . . Machines Sabotaged . | . . . Overloaded Fab Kills . | . . . Hacking | -11 -10 -10 --------- Run | Yrd Mat Min Machines Accessed 6 | . 6 . Terminals 6 | . 6 . Fabricators . | . . . Repair Stations . | . . . Recycling Units . | . . . Scanalyzers . | . . . Garrison Access . | . . . Total Hacks 15 | . 15 . Successful 5 | . 5 . Failed 10 | . 10 . Catastrophic 3 | . 3 . Database Lockouts . | . . . Manual 9 | . 9 . Terminals 15 | . 15 . Fabricators . | . . . Repair Stations . | . . . Recycling Units . | . . . Scanalyzers . | . . . Garrison Access . | . . . Terminal Hacks 4 | . 4 . Robot Analysis 3 | . 3 . Terminal Index 1 | . 1 . Fabricator Hacks . | . . . Repair Station Hacks . | . . . Recycling Unit Hacks . | . . . Scanalyzer . | . . . Garrison Access Hacks . | . . . Unauthorized Hacks 1 | . 1 . Terminals 1 | . 1 . Botnet 1 | . 1 . Fabricators . | . . . Repair Stations . | . . . Recycling Units . | . . . Scanalyzers . | . . . Garrison Access . | . . . Data Cores Recovered . | . . . Used . | . . . Hacking Detections 6 | . 6 . Full Trace Events 3 | . 3 . Feedback Events 1 | . 1 . Corruption 1 | . 1 . Feedback Blocked . | . . . Robot Schematics Acquired . | . . . Robots Built . | . . . Authchips . | . . . Time . | . . . Total Robot Build Rating . | . . . Part Schematics Acquired . | . . . Parts Built . | . . . Authchips . | . . . Time . | . . . Total Part Build Rating . | . . . Parts Repaired . | . . . Time . | . . . Parts Recycled . | . . . Recycled Matter . | . . . Retrieved Matter . | . . . Retrieved Components . | . . . Parts Scanalyzed . | . . . Part Schematics Acquired . | . . . Parts Damaged . | . . . Bothacking | -11 -10 -10 ------------ Run | Yrd Mat Min Used RIF Installer . | . . . Robots Hacked . | . . . Non-combat . | . . . Combat . | . . . Robot Hacks Applied . | . . . Relay Couplers Released . | . . . Fabnet Peak Effective % . | . . . Robots Rewired . | . . . Allies Hacked . | . . . Hacks Repelled . | . . . Allies | -11 -10 -10 -------- Run | Yrd Mat Min Total Allies . | . . . Largest Group . | . . . Highest-Rated Group . | . . . Highest-Rated Ally . | . . . Total Orders . | . . . Ally Attacks . | . . . Total Damage . | . . . Kills . | . . . Allies Corrupted . | . . . Allies Melted . | . . . Intel | -11 -10 -10 ------- Run | Yrd Mat Min Robot Analysis Total 3 | . 3 . Derelict Logs Recovered 1 | . . 1 Drone Launches . | . . . Drone Recoveries . | . . . Exploration | -11 -10 -10 ------------- Run | Yrd Mat Min Turns Passed 1540 | 55 1386 99 Spaces Moved 608 | 46 532 30 Core 5 | 5 . . Treads 437 | . 407 30 Legs . | . . . Wheels 166 | 41 125 . Hover . | . . . Flight . | . . . Fastest Speed 50 | 50 90 240 Average Speed 197 | 88 204 240 Slowest Speed 240 | 100 240 240 Overloaded Moves . | . . . Propulsion Burnouts . | . . . Robots Hopped . | . . . Cave-ins Triggered . | . . . Exploration Rate (%) 32 | 4 73 20 Regions Visited 2 Branch Regions 1 Pre-discovered Areas . | . . . Known Exits Taken . | . . . Unknown Exits Taken 2 | 1 1 . Scrap Searched 1 | . . 1 Spaces Dug 2 | . 2 . Terrain Destroyed 13 | . 2 11 Melee 2 | . 2 . Projectile . | . . . AOE 11 | . . 11 Terrain Rammed . | . . . Walls Destroyed . | . . . Machines Disabled . | . . . Actions | -11 -10 -10 --------- Run | Yrd Mat Min Total 775 | 57 673 45 Wait 34 | . 34 . Move 606 | 45 531 30 Hop . | . . . Pick Up 24 | 6 17 1 Fast Attach 8 | 6 2 . Attach 6 | . 3 3 Detach . | . . . Swap 9 | . 6 3 Drop 3 | . 2 1 Fire 65 | . 58 7 Melee 19 | . 19 . Ram . | . . . Kick . | . . . Crush 1 | . 1 . Escape Stasis . | . . . Rewire . | . . . Trap . | . . . Miscellaneous . | . . . Route ------- -11/Scrapyard -10/Materials (discovered 4 exits: [*Mat x2] / [*Min] / [*Sub]) -10/Mines History --------- Turn | Location | Event 24 | -11/Scrapyard | Discovered new exit (range 15) 56 | -11/Scrapyard | Entered Materials 302 | -10/Materials | Build established: Mutant 616 | -10/Materials | Discovered new exit (range 16) 805 | -10/Materials | Discovered new exit (range 9) 1035 | -10/Materials | Discovered new exit (range 8) 1270 | -10/Materials | Discovered new exit (range 11) 1442 | -10/Materials | Entered Mines 1447 | -10/Mines | Learned 4 Materials zone layouts 1523 | -10/Mines | Core integrity fell below 50% 1531 | -10/Mines | Core integrity fell below 20% 1541 | -10/Mines | Destroyed by YI-UF0 with YI-UF0's Doublenader Last Messages --------------- 01514_ YI-UF0: "BWOOM!" 01515_ YI-UF0: "Whaaaaaaaa!" 01522_ Sensor Array destroyed. 01529_ The unstable cave ceiling collapses. 01532_ Lgt. Treads destroyed. 01532_ U-05 Engineer lays Concrete. 01534_ Lgt. Treads destroyed. 01534_ U-05 Engineer lays Concrete. 01534_ U-05 Engineer builds a Wall. 01534_ R-06 Scavenger collects Flight Unit. 01535_ U-05 Engineer lays Concrete. 01537_ The unstable cave ceiling collapses. 01537_ U-05 Engineer lays Concrete. 01538_ U-05 Engineer builds a Wall. 01538_ R-06 Scavenger collects Lgt. Assault Rifle. 01540_ The unstable cave ceiling collapses. 01540_ U-05 Engineer lays Concrete. 01541_ The unstable cave ceiling collapses. 01541_ U-05 Engineer builds a Wall. Map ----- +----------------------------------------------------+ | ??????????????????????????????????????# | | ?????????????????????????????????????? | | ?????????????????????????????????????# | | ?????????????????????????????????????# | | ????????????????????????????????????## | | ???????????????????????????????????## | | ?????????????????????####????#?????# | | ???????????????????### #??? ###??# # | | ???????????????????? #???# #??# ## | | ?????????????????????# #???# #??# ####? | | ?????????????????? ??# ##??# #??# #???? | | ?????????????????? ??# #### #?## #???? | | ?????????????????? ??# ## ### ##??? | | ???????????????### ### # ## #??? | | ???????????##### ^#??? | | ??????????## #####^ # | | ??????????## # ####???# # | | ??????????# #??????# # # # | | ??????????# # # #??????#^## # #? | | ??????????# #??????# ? #?#? | | ??????????# #??????###?####??? | | ??????????? !#????????????????? | | ????????????# ! |#????????????????? | | ?????????????# #????????????????? | | ?????????????## ###??????????????????? | | ?????????????# @ #??????????????????? | | ?????????????# # #??????????????????? | | ?????????????# #??????????????????? | | ?????????????# #??????????????????? | | ????????????# g #??????????????????? | | ????????????# #?????????????????? | | ????????????## ###?????????????????? | | ?????????????## #???????????????????? | | ??????????????# #???????????????????? | | ??????????????## ???????????????????? | | ???????????????# ???????????????????? | | ???????????????# u??????????????????? | | ??????????????? u??????????????????? | | ???????????????# r ?????????????????? | | ???????????????## ???????????????????? | | ?????????????????# ?????????????????????? | | ??????????????????????????????????????????? | | ??????????????????????????????????????????? | | ??????????????????????????????????????????? | | ??????????????????????????????????????????? | | ??????????????????????????????????????????? | | ??????????????????????????????????????????? | | ??????????????????????????????????????????? | | ??????????????????????????????????????????? | | ??????????????????????????????????????????? | +----------------------------------------------------+ Best States ------------- Heat Dissipation 25 Energy Generation 10 Energy Capacity 250 Matter Stores 300 Matter Capacity 300 Sight Range 16 Robot Scan Range 14 Terrain Scan Density 10 Weapon Shielding 33 Evasion (%) 42 Recoil Reduction 2 Item Schematics ----------------- None Robot Schematics ------------------ None Fabricated ------------ Nothing Alien Tech Used ----------------- None Achievements -------------- None Challenges ------------ None Game ------ Seed ImpactAntimissileStreamer Manual? 0 Play Time 00:27:38 Cumulative 15.2 hours Start 2024.04.16 @ 01:21:38 End 2024.04.16 @ 19:43:23 Sessions 4 Manual Loads 0 Difficulty Rogue Special Mode None Game No. 12 Rogue 12 Adventurer 0 Explorer 0 Win Type - Total 1 Types 1/0/0/0/0/0/0/0/0 Lore% 13 Gallery% 14 Achievement% 22 Wizard Run 0 Options --------- Layout 1 ASCII 0 Keyboard 0 Movement Mouse Keybinds 0 Fullscreen 2 Font 32/SmallcapsGlow Map View 50x35 Zoom Use 0% Tactical HUD 1 Map Filters NONE Filters NONE Steam 0 RUN: a40837a3-f18b-4a24-bc9c-66c450c020c2